bitfinex-derivatives/quotes_BTCF0:USTF0_20241010
["timestamp","ask_amount","ask_price","bid_price","bid_amount"]
[1728602977917,0.215662,60317.0,60316.0,0.075663]
[1728602978112,0.215662,60317.0,60316.0,0.001]
[1728602978113,1.443022,60317.0,60316.0,0.001]
[1728602978718,1.443022,60317.0,60309.0,0.06618467]
[1728602978719,2.183022,60317.0,60307.0,0.14085767]
[1728602978923,0.074672,60308.0,60307.0,0.14085767]
[1728602979414,0.074672,60308.0,60306.0,0.06618467]
[1728602979415,0.074674,60307.0,60306.0,0.06618467]
[1728602979716,0.204674,60307.0,60306.0,0.06618467]
[1728602980014,0.204674,60307.0,60297.0,0.10177558]
[1728602980015,0.26,60307.0,60300.0,0.06618467]
[1728602980218,0.13,60302.0,60300.0,0.06618467]
[1728602980405,0.13,60302.0,60299.0,0.14086767]
[1728602980609,0.074682,60300.0,60299.0,0.14086767]
[1728602981108,0.3608,60305.0,60299.0,0.19618467]
[1728602981308,0.074678,60304.0,60303.0,0.074679]
[1728602982718,0.074678,60304.0,60303.0,0.079679]
[1728602983713,0.074678,60304.0,60303.0,0.005]
[1728602984113,0.075678,60304.0,60303.0,0.009]
[1728602984319,0.077678,60304.0,60303.0,0.009]
[1728602985054,0.076677,60304.0,60303.0,0.002]
[1728602991224,0.076677,60304.0,60303.0,0.076679]
[1728603000527,0.002,60304.0,60303.0,0.076679]
[1728603006133,0.132,60304.0,60303.0,0.076679]
[1728603006442,0.132,60304.0,60303.0,0.14286367]
[1728603007142,0.002,60304.0,60303.0,0.14286367]
[1728603007448,0.132,60304.0,60303.0,0.076679]
[1728603008242,0.206677,60304.0,60303.0,0.076679]
[1728603011141,0.132,60304.0,60303.0,0.076679]
[1728603013638,0.206677,60304.0,60303.0,0.076679]
[1728603024339,0.206677,60304.0,60303.0,0.26095126]
[1728603025147,0.206677,60304.0,60303.0,0.076679]
[1728603030657,0.206677,60304.0,60303.0,0.14301606]
[1728603031053,0.206677,60304.0,60303.0,0.076679]
[1728603031654,0.206677,60304.0,60303.0,0.14300916]
[1728603033254,0.206677,60304.0,60303.0,0.076679]
[1728603044166,0.076677,60304.0,60303.0,0.076679]
[1728603045465,0.002,60304.0,60303.0,0.076679]
[1728603056673,0.076677,60304.0,60303.0,0.076679]
[1728603068991,0.076677,60304.0,60303.0,0.15941701]
[1728603069183,0.076677,60304.0,60303.0,0.076679]
[1728603069689,0.076677,60304.0,60303.0,0.15941701]
[1728603070481,0.076677,60304.0,60303.0,0.26108937]
[1728603071388,0.076677,60304.0,60303.0,0.076679]
[1728603072791,0.076677,60304.0,60303.0,0.15941701]
[1728603074581,0.002,60304.0,60303.0,0.15941701]
[1728603075394,0.0039,60311.0,60310.0,0.07467]
[1728603075689,0.074667,60313.0,60310.0,0.07467]
[1728603075690,0.074667,60313.0,60310.0,0.21285311]
[1728603076088,0.074667,60313.0,60311.0,0.08285311]
[1728603076280,0.09868346,60313.0,60312.0,0.08285311]
[1728603076479,0.09868346,60313.0,60312.0,0.18385941]
[1728603076689,0.09868346,60313.0,60312.0,0.10109165]
[1728603076896,0.09868346,60313.0,60312.0,0.074667]
[1728603077086,0.02401646,60313.0,60312.0,0.074667]
[1728603077383,0.07714996,60317.0,60316.0,0.074663]
[1728603077586,0.00248796,60317.0,60316.0,0.27084723]
[1728603077792,0.00248796,60317.0,60316.0,0.204663]
[1728603078493,0.00848796,60317.0,60316.0,0.205663]
[1728603078796,0.0039,60322.0,60321.0,0.074656]
[1728603078988,0.074647,60329.0,60328.0,0.074647]
[1728603080288,0.204647,60329.0,60328.0,0.074647]
[1728603080887,0.204647,60329.0,60328.0,0.075647]
[1728603081090,0.348647,60329.0,60328.0,0.002]
[1728603081287,0.380447,60329.0,60328.0,0.002]
[1728603081494,0.380447,60329.0,60319.0,0.12425339]
[1728603081495,0.074658,60320.0,60319.0,0.074658]
[1728603081794,0.435458,60320.0,60319.0,0.074658]
[1728603081994,0.435458,60320.0,60314.0,0.02425255]
[1728603081995,0.3608,60320.0,60312.0,0.04959539]
[1728603082184,0.204665,60314.0,60313.0,0.435466]
[1728603083693,0.204665,60314.0,60313.0,0.48506139]
[1728603084089,0.206665,60314.0,60313.0,0.48506139]
[1728603084592,0.206665,60314.0,60313.0,0.435466]
[1728603086094,0.206665,60314.0,60313.0,0.074666]
[1728603086690,0.206665,60314.0,60305.0,0.44553034]
[1728603086691,0.132,60314.0,60310.0,0.12426539]
[1728603086896,0.204669,60311.0,60310.0,0.07467]
[1728603088499,0.00084,60313.0,60309.0,0.17959539]
[1728603088797,0.0039,60318.0,60317.0,0.074661]
[1728603088990,0.0039,60326.0,60325.0,0.074651]
[1728603089296,0.07465,60327.0,60326.0,0.07465]
[1728603089494,0.20465,60327.0,60326.0,0.07465]
[1728603090089,0.20465,60327.0,60326.0,0.43545]
[1728603090491,0.21865,60327.0,60326.0,0.07565]
[1728603090698,0.24368745,60327.0,60326.0,0.07565]
[1728603091993,0.24368745,60327.0,60326.0,0.07665]
[1728603096805,0.60448745,60327.0,60326.0,0.002]
[1728603097399,0.47448745,60327.0,60326.0,0.002]
[1728603097600,1.34448745,60327.0,60326.0,0.002]
[1728603111821,1.21448745,60327.0,60326.0,0.002]
[1728603114912,0.85368745,60327.0,60326.0,0.002]
[1728603115119,1.21448745,60327.0,60326.0,0.002]
[1728603115620,1.24138178,60327.0,60326.0,0.002]
[1728603117415,1.21448745,60327.0,60326.0,0.002]
[1728603117812,1.2413817,60327.0,60326.0,0.002]
[1728603120123,1.3713817,60327.0,60326.0,0.002]
[1728603122417,1.3713817,60327.0,60326.0,0.07665]
[1728603122724,0.47448745,60327.0,60326.0,0.12613459]
[1728603123021,0.47448745,60327.0,60326.0,0.07665]
[1728603125223,0.60448745,60327.0,60326.0,0.14261032]
[1728603125526,0.60448745,60327.0,60326.0,0.07665]
[1728603126230,0.60448745,60327.0,60326.0,0.14261032]
[1728603126427,0.60448745,60327.0,60326.0,0.07665]
[1728603126724,0.24368745,60327.0,60326.0,0.14261032]
[1728603126920,0.24368745,60327.0,60326.0,0.14286074]
[1728603127130,0.24368745,60327.0,60326.0,0.07665]
[1728603127818,0.03903745,60327.0,60326.0,0.14285211]
[1728603128014,0.03903745,60327.0,60326.0,0.07665]
[1728603129023,0.0039,60334.0,60333.0,0.074641]
[1728603129326,0.13,60335.0,60334.0,0.07464]
[1728603129624,0.13,60335.0,60334.0,0.12424003]
[1728603130224,0.13,60335.0,60334.0,0.07464]
[1728603130420,0.15467287,60335.0,60334.0,0.07464]
[1728603130620,0.02467287,60335.0,60334.0,0.07464]
[1728603130826,0.13,60335.0,60334.0,0.07464]
[1728603131033,0.204639,60335.0,60334.0,0.07564]
[1728603131625,0.205639,60335.0,60334.0,0.07664]
[1728603135225,0.001,60335.0,60334.0,0.07664]
[1728603135535,0.131,60335.0,60334.0,0.07664]
[1728603136421,0.131,60335.0,60334.0,0.07564]
[1728603136620,0.001,60335.0,60334.0,0.07664]
[1728603136825,0.001,60335.0,60334.0,0.002]
[1728603137035,0.001,60335.0,60334.0,0.05152983]
[1728603137036,0.205639,60335.0,60334.0,0.05152983]
[1728603137227,0.205639,60335.0,60334.0,0.002]
[1728603137736,0.075639,60335.0,60334.0,0.002]
[1728603138634,0.205639,60335.0,60330.0,0.04572983]
[1728603138836,0.695444,60331.0,60330.0,0.04572983]
[1728603139034,0.435444,60331.0,60330.0,0.02592983]
[1728603139332,0.074649,60328.0,60327.0,0.074649]
[1728603139531,0.204649,60328.0,60327.0,0.074649]
[1728603140732,0.3608,60331.0,60330.0,0.074645]
[1728603140733,0.074645,60331.0,60330.0,0.074645]
[1728603141034,0.204645,60331.0,60330.0,0.074645]
[1728603141937,0.074645,60331.0,60330.0,0.074645]
[1728603142126,0.074645,60331.0,60328.0,0.13]
[1728603142127,0.07464,60335.0,60334.0,0.07464]
[1728603143040,0.09947372,60335.0,60334.0,0.07464]
[1728603143642,0.10147372,60335.0,60334.0,0.07564]
[1728603144435,0.10347372,60335.0,60334.0,0.07664]
[1728603144638,0.23347372,60335.0,60334.0,0.07664]
[1728603152353,0.10347372,60335.0,60334.0,0.07664]
[1728603152654,0.23347372,60335.0,60334.0,0.07664]
[1728603153243,0.23347372,60335.0,60334.0,0.002]
[1728603160060,0.10347372,60335.0,60334.0,0.002]
[1728603160362,0.10347372,60335.0,60334.0,0.06816084]
[1728603160363,0.23347372,60335.0,60334.0,0.06816084]
[1728603160860,0.23347372,60335.0,60334.0,0.07664]
[1728603163260,0.23347372,60335.0,60334.0,0.14280084]
[1728603163766,0.23347372,60335.0,60334.0,0.06816084]
[1728603164859,0.23347372,60335.0,60334.0,0.002]
[1728603168967,0.23347372,60335.0,60334.0,0.002]
[1728603170367,0.26036401,60335.0,60334.0,0.002]
[1728603171964,0.07464,60334.0,60328.0,0.06616084]
[1728603172264,0.074648,60328.0,60323.0,0.06616084]
[1728603172472,0.4908,60324.0,60319.0,0.06616084]
[1728603172671,0.13,60320.0,60318.0,0.06616084]
[1728603172863,0.074659,60319.0,60318.0,0.06616084]
[1728603173058,0.07466,60318.0,60317.0,0.14082084]
[1728603173271,0.07466,60318.0,60317.0,0.07466]
[1728603174067,0.20466,60318.0,60317.0,0.07466]
[1728603174769,0.20466,60318.0,60317.0,0.07666]
[1728603175866,0.20466,60318.0,60317.0,0.14282084]
[1728603176267,0.20466,60318.0,60317.0,0.07666]
[1728603176868,0.074655,60322.0,60321.0,0.074655]
[1728603177072,0.02459485,60323.0,60322.0,0.074655]
[1728603177266,0.074654,60323.0,60322.0,0.074655]
[1728603177761,0.074654,60323.0,60322.0,0.14081584]
[1728603178571,0.076654,60323.0,60322.0,0.14081584]
[1728603179278,0.079654,60323.0,60322.0,0.14081584]
[1728603180582,0.079654,60323.0,60322.0,0.074655]
[1728603181782,0.076654,60323.0,60322.0,0.077655]
[1728603182180,0.074654,60323.0,60322.0,0.082655]
[1728603182879,0.074654,60323.0,60322.0,0.079655]
[1728603183476,0.074654,60323.0,60322.0,0.005]
[1728603184277,0.074654,60323.0,60318.0,0.3608]
[1728603184484,0.204659,60319.0,60318.0,0.3608]
[1728603185183,0.204659,60319.0,60318.0,0.43546]
[1728603185376,0.204659,60319.0,60318.0,0.43846]
[1728603185585,0.204659,60319.0,60318.0,0.44846]
[1728603186180,0.204659,60319.0,60318.0,0.45246]
[1728603187179,0.074659,60319.0,60318.0,0.45246]
[1728603189685,0.074655,60322.0,60318.0,0.3778]
[1728603189986,0.13,60321.0,60319.0,0.074659]
[1728603190187,0.13,60321.0,60320.0,0.074658]
[1728603191377,0.13,60321.0,60320.0,0.082658]
[1728603191584,0.204656,60321.0,60320.0,0.082658]
[1728603192478,0.13,60321.0,60320.0,0.082658]
[1728603192982,0.13,60321.0,60320.0,0.087658]
[1728603193996,0.204656,60321.0,60320.0,0.087658]
[1728603194997,0.074656,60321.0,60320.0,0.087658]
[1728603195283,0.204656,60321.0,60320.0,0.087658]
[1728603198987,0.204656,60321.0,60320.0,0.067858]
[1728603199488,0.204656,60321.0,60320.0,0.048058]
[1728603200284,0.204656,60321.0,60320.0,0.11421884]
[1728603201385,0.204656,60321.0,60320.0,0.048058]
[1728603203089,0.074656,60321.0,60320.0,0.048058]
[1728603203280,0.204656,60321.0,60320.0,0.048058]
[1728603205096,0.02930479,60327.0,60326.0,0.07465]
[1728603205395,0.074649,60327.0,60326.0,0.14079601]
[1728603205989,0.074649,60327.0,60326.0,0.07465]
[1728603207185,0.075649,60327.0,60326.0,0.07465]
[1728603207400,0.075649,60327.0,60326.0,0.07565]
[1728603213298,0.205649,60327.0,60326.0,0.07565]
[1728603214007,0.001,60327.0,60326.0,0.07565]
[1728603214197,0.205649,60327.0,60326.0,0.14179601]
[1728603216104,0.205649,60327.0,60326.0,0.07565]
[1728603222605,0.205649,60327.0,60326.0,0.14175232]
[1728603223003,0.205649,60327.0,60326.0,0.07565]
[1728603223208,0.131,60327.0,60326.0,0.07565]
[1728603225720,0.001,60327.0,60326.0,0.07565]
[1728603226606,0.001,60327.0,60326.0,0.06465]
[1728603232512,0.001,60327.0,60326.0,0.42545]
[1728603235421,0.001,60327.0,60326.0,0.06465]
[1728603243323,0.001,60327.0,60326.0,0.14735105]
[1728603244317,0.001,60327.0,60326.0,0.06465]
[1728603245921,0.075649,60327.0,60326.0,0.06465]
[1728603248815,0.075649,60327.0,60326.0,0.14735105]
[1728603251133,0.001,60327.0,60326.0,0.14735105]
[1728603251331,0.001,60327.0,60326.0,0.24739955]
[1728603252124,0.075649,60327.0,60326.0,0.24739955]
[1728603252525,0.205649,60327.0,60326.0,0.24739955]
[1728603254220,0.205649,60327.0,60326.0,0.1646985]
[1728603256332,0.205649,60327.0,60326.0,0.18376417]
[1728603256530,0.074653,60325.0,60324.0,1e-08]
[1728603256730,0.26,60325.0,60322.0,0.06619433]
[1728603257034,0.26,60325.0,60316.0,0.076782]
[1728603257035,0.074656,60321.0,60320.0,0.06619433]
[1728603257228,0.074658,60320.0,60319.0,0.06619433]
[1728603257434,0.07466,60318.0,60317.0,0.06619433]
[1728603257730,0.20466,60318.0,60317.0,0.06619433]
[1728603258325,0.074661,60317.0,60316.0,0.074662]
[1728603259335,0.074661,60317.0,60316.0,0.054862]
[1728603259525,0.204661,60317.0,60313.0,0.06619433]
[1728603259728,0.204661,60317.0,60310.0,0.0495935]
[1728603259729,0.074666,60313.0,60310.0,0.0495935]
[1728603260032,0.20467,60310.0,60309.0,0.00248674]
[1728603260234,1.06291,60310.0,60309.0,0.00248674]
[1728603260430,1.66291,60310.0,60309.0,0.00248674]
[1728603260636,1.06291,60310.0,60309.0,0.00248674]
[1728603261031,0.93291,60310.0,60309.0,0.00248674]
[1728603261434,0.93291,60310.0,60309.0,0.01348674]
[1728603261734,0.93291,60310.0,60309.0,0.02148674]
[1728603262331,1.06291,60310.0,60309.0,0.02148674]
[1728603262535,0.93291,60310.0,60309.0,0.02148674]
[1728603263234,0.93291,60310.0,60309.0,0.019]
[1728603263734,0.96313691,60310.0,60309.0,0.019]
[1728603263935,0.46569691,60310.0,60309.0,0.019]
[1728603264936,0.10489691,60310.0,60309.0,0.019]
[1728603265139,0.46569691,60310.0,60309.0,0.019]
[1728603265938,0.46569691,60310.0,60309.0,0.149]
[1728603266134,0.39102691,60310.0,60309.0,0.223671]
[1728603266333,0.3608,60310.0,60309.0,0.223671]
[1728603266749,0.074665,60314.0,60313.0,0.074665]
[1728603267747,0.074665,60314.0,60313.0,0.078665]
[1728603267948,0.074665,60314.0,60313.0,0.085665]
[1728603268245,0.074665,60314.0,60313.0,0.011]
[1728603284253,0.074665,60314.0,60313.0,0.085666]
[1728603284655,0.03062145,60315.0,60314.0,0.074665]
[1728603284859,0.4908,60318.0,60313.0,0.011]
[1728603285053,0.074663,60316.0,60315.0,0.074662]
[1728603285260,0.204663,60316.0,60315.0,0.074662]
[1728603286158,0.204663,60316.0,60315.0,0.078662]
[1728603286560,0.204663,60316.0,60315.0,0.080662]
[1728603287059,0.39040029,60318.0,60317.0,0.074661]
[1728603287060,0.02960029,60318.0,60317.0,0.074661]
[1728603287270,0.074657,60321.0,60317.0,0.13]
[1728603287463,0.074657,60321.0,60320.0,0.074658]
[1728603287975,0.204657,60321.0,60320.0,0.074658]
[1728603289561,0.207657,60321.0,60320.0,0.074658]
[1728603289765,0.208657,60321.0,60320.0,0.074658]
[1728603289978,0.338657,60321.0,60315.0,0.00216]
[1728603290169,0.074671,60309.0,60308.0,0.3608]
[1728603290371,0.204671,60309.0,60308.0,0.3608]
[1728603292073,0.204671,60309.0,60308.0,0.3818]
[1728603292275,0.204671,60309.0,60308.0,0.456472]
[1728603293879,0.204671,60309.0,60308.0,0.3818]
[1728603294079,0.204671,60309.0,60308.0,0.021]
[1728603294578,0.944671,60309.0,60308.0,0.021]
[1728603296980,1.305471,60309.0,60308.0,0.021]
[1728603297984,1.33490253,60309.0,60308.0,0.021]
[1728603298280,1.46490253,60309.0,60308.0,0.021]
[1728603298480,0.074687,60296.0,60295.0,0.3608]
[1728603299681,0.074687,60296.0,60295.0,0.3748]
[1728603300681,0.074687,60296.0,60295.0,0.449489]
[1728603300883,0.075687,60296.0,60295.0,0.463489]
[1728603304681,0.075687,60296.0,60295.0,0.102689]
[1728603305787,0.075687,60296.0,60295.0,0.028]
[1728603305979,0.436487,60296.0,60295.0,0.028]
[1728603306881,0.566487,60296.0,60295.0,0.028]
[1728603307081,0.598987,60296.0,60295.0,0.028]
[1728603307380,0.728987,60296.0,60295.0,0.028]
[1728603308476,1.75186,60296.0,60285.0,0.00248774]
[1728603308680,0.4355,60286.0,60285.0,0.00248774]
[1728603309489,0.4355,60286.0,60285.0,0.01548774]
[1728603310087,0.4365,60286.0,60285.0,0.01548774]
[1728603310980,0.4375,60286.0,60285.0,0.02948774]
[1728603312193,0.5675,60286.0,60285.0,0.02948774]
[1728603313583,0.59722494,60286.0,60285.0,0.02948774]
[1728603313788,2.31566494,60286.0,60271.0,0.0084]
[1728603314084,0.13,60272.0,60271.0,0.074718]
[1728603314290,0.3608,60275.0,60266.0,0.074724]
[1728603314595,0.13,60267.0,60266.0,0.074724]
[1728603314886,0.074719,60271.0,60270.0,0.074718]
[1728603315195,0.204719,60271.0,60270.0,0.074718]
[1728603316395,0.265719,60271.0,60270.0,0.074718]
[1728603317394,0.266719,60271.0,60270.0,0.075718]
[1728603319397,0.076719,60271.0,60270.0,0.075718]
[1728603319903,0.002,60271.0,60270.0,0.060718]
[1728603320297,0.002,60271.0,60270.0,0.250718]
[1728603320705,0.0632,60285.0,60279.0,0.074707]
[1728603320706,0.074708,60280.0,60279.0,0.074707]
[1728603321204,0.02969631,60281.0,60280.0,0.074707]
[1728603321394,0.074702,60284.0,60280.0,0.0955]
[1728603321698,0.074698,60288.0,60286.0,0.0747]
[1728603321896,0.03210734,60287.0,60286.0,0.0747]
[1728603322091,0.10680534,60287.0,60286.0,0.0594]
[1728603322397,0.03210734,60287.0,60286.0,0.0414]
[1728603322787,0.03210734,60287.0,60286.0,0.0388]
[1728603323098,0.03710734,60287.0,60286.0,0.0388]
[1728603323395,0.0039,60295.0,60286.0,0.19]
[1728603323587,0.07469,60294.0,60293.0,0.07469]
[1728603324599,0.001,60287.0,60286.0,0.2677]
[1728603324796,0.0039,60294.0,60292.0,0.074691]
[1728603325101,0.03030937,60296.0,60295.0,0.074689]
[1728603325296,0.074687,60296.0,60295.0,0.074689]
[1728603326299,0.080687,60296.0,60295.0,0.074689]
[1728603327398,0.084687,60296.0,60295.0,0.074689]
[1728603330102,0.01,60296.0,60295.0,0.074689]
[1728603330301,0.0039,60303.0,60302.0,0.07468]
[1728603330500,0.074675,60306.0,60305.0,0.074675]
[1728603330690,0.19,60307.0,60300.0,0.3608]
[1728603330897,0.435471,60309.0,60306.0,0.074674]
[1728603331198,0.074673,60308.0,60306.0,0.074674]
[1728603331607,0.46530932,60309.0,60301.0,0.19]
[1728603331791,0.435471,60309.0,60308.0,0.074672]
[1728603331996,0.628471,60309.0,60308.0,0.074672]
[1728603333103,0.5538,60309.0,60308.0,0.074672]
[1728603333708,0.5508,60309.0,60308.0,0.074672]
[1728603334097,0.5508,60309.0,60308.0,0.075672]
[1728603334702,0.074671,60310.0,60309.0,0.074671]
[1728603336801,0.074671,60310.0,60309.0,0.075671]
[1728603337303,0.074671,60310.0,60309.0,0.17520634]
[1728603337507,0.074671,60310.0,60309.0,0.17620634]
[1728603337704,0.074671,60310.0,60309.0,0.25909159]
[1728603338299,0.074671,60310.0,60309.0,0.15945435]
[1728603338903,0.074671,60310.0,60309.0,0.15745435]
[1728603339107,0.074671,60310.0,60309.0,0.15845435]
[1728603340001,0.03045117,60311.0,60310.0,0.07467]
[1728603340306,0.264668,60312.0,60310.0,0.07467]
[1728603340811,0.074669,60311.0,60310.0,0.07467]
[1728603341712,0.21964654,60312.0,60311.0,0.074669]
[1728603341713,0.02964654,60312.0,60311.0,0.074669]
[1728603342017,0.074665,60314.0,60311.0,0.08278335]
[1728603342210,0.074665,60314.0,60310.0,0.08278335]
[1728603342415,0.074662,60317.0,60315.0,0.074663]
[1728603342807,0.074663,60316.0,60315.0,0.074663]
[1728603343005,0.074663,60316.0,60314.0,0.08278335]
[1728603343006,0.19,60318.0,60314.0,0.08278335]
[1728603343201,0.1051782,60319.0,60318.0,0.07466]
[1728603343400,0.074659,60319.0,60318.0,0.1407756]
[1728603344313,0.074659,60319.0,60315.0,0.3628]
[1728603344314,0.02924952,60322.0,60321.0,0.074656]
[1728603344511,0.074654,60323.0,60321.0,0.074656]
[1728603344512,0.3608,60323.0,60321.0,0.074656]
[1728603345205,0.19,60322.0,60321.0,0.074656]
[1728603345408,0.19,60322.0,60315.0,0.3628]
[1728603345409,0.074658,60320.0,60318.0,0.06709401]
[1728603345703,0.19,60322.0,60318.0,0.06709401]
[1728603345704,0.074659,60319.0,60318.0,0.001]
[1728603346209,0.07466,60318.0,60317.0,0.14075401]
[1728603347309,0.07466,60318.0,60317.0,0.07466]
[1728603347907,0.07566,60318.0,60317.0,0.07466]
[1728603348911,0.07566,60318.0,60317.0,0.07766]
[1728603349619,0.07566,60318.0,60317.0,0.07466]
[1728603349923,0.07566,60318.0,60317.0,0.07766]
[1728603350519,0.07566,60318.0,60317.0,0.003]
[1728603359634,0.07566,60318.0,60317.0,0.06908654]
[1728603361738,0.07566,60318.0,60317.0,0.003]
[1728603361928,0.07566,60318.0,60317.0,0.077661]
[1728603366338,0.07566,60318.0,60317.0,0.14375568]
[1728603366537,0.07566,60318.0,60317.0,0.077661]
[1728603367839,0.07566,60318.0,60317.0,0.003]
[1728603368144,0.33566,60318.0,60317.0,0.003]
[1728603368335,0.20566,60318.0,60317.0,0.003]
[1728603368646,0.26566,60318.0,60317.0,0.003]
[1728603369346,0.26466,60318.0,60317.0,0.003]
[1728603369940,0.26466,60318.0,60315.0,0.04958976]
[1728603370137,0.074664,60315.0,60314.0,0.04958976]
[1728603370336,0.074667,60312.0,60311.0,0.06610797]
[1728603370535,0.07467,60310.0,60309.0,0.06610797]
[1728603370750,0.26467,60310.0,60309.0,0.06610797]
[1728603371437,0.26467,60310.0,60308.0,0.074672]
[1728603371438,0.19,60310.0,60308.0,0.074672]
[1728603371741,0.074671,60309.0,60308.0,0.074672]
[1728603373048,0.075671,60309.0,60308.0,0.074672]
[1728603373641,0.075671,60309.0,60308.0,0.14379346]
[1728603374037,0.075671,60309.0,60308.0,0.077672]
[1728603378350,0.075671,60309.0,60308.0,0.14375928]
[1728603380153,0.075671,60309.0,60308.0,0.12885928]
[1728603380651,0.075671,60309.0,60308.0,0.11395928]
[1728603380849,0.075671,60309.0,60308.0,0.09905928]
[1728603381849,0.001,60309.0,60308.0,0.393772]
[1728603382152,0.03012798,60316.0,60308.0,0.96047366]
[1728603382453,0.03012798,60316.0,60315.0,0.14070364]
[1728603383047,0.074662,60317.0,60315.0,0.14070364]
[1728603383048,0.074661,60318.0,60315.0,0.14070364]
[1728603383253,0.074661,60318.0,60314.0,0.06603964]
[1728603383552,0.004,60316.0,60315.0,0.14070364]
[1728603383754,0.007,60316.0,60315.0,0.14070364]
[1728603384557,0.007,60316.0,60315.0,0.074664]
[1728603385054,0.004,60316.0,60315.0,0.14070853]
[1728603385647,0.085661,60318.0,60317.0,0.074661]
[1728603386067,0.080661,60318.0,60317.0,0.074661]
[1728603386555,0.074661,60318.0,60317.0,0.074661]
[1728603388755,0.074661,60318.0,60317.0,0.076661]
[1728603390449,0.204661,60318.0,60317.0,0.076661]
[1728603391352,0.204661,60318.0,60317.0,0.002]
[1728603391657,0.334661,60318.0,60317.0,0.002]
[1728603392055,0.41751877,60318.0,60317.0,0.002]
[1728603392252,0.334661,60318.0,60317.0,0.002]
[1728603392458,0.334661,60318.0,60311.0,0.04954489]
[1728603392459,0.335661,60318.0,60311.0,0.04954489]
[1728603392759,0.074669,60311.0,60310.0,0.04954489]
[1728603392951,0.074671,60309.0,60308.0,0.074672]
[1728603395259,0.075671,60309.0,60308.0,0.074672]
[1728603396051,0.075671,60309.0,60308.0,0.077672]
[1728603399563,0.10544208,60309.0,60308.0,0.077672]
[1728603400657,0.10544208,60309.0,60308.0,0.14371653]
[1728603401872,0.10544208,60309.0,60308.0,0.077672]
[1728603403668,0.10544208,60309.0,60308.0,0.14371653]
[1728603406262,0.10544208,60309.0,60308.0,0.077672]
[1728603408166,0.23544208,60309.0,60308.0,0.077672]
[1728603408569,0.23544208,60309.0,60308.0,0.003]
[1728603415873,0.23544208,60309.0,60308.0,0.05252744]
[1728603416070,0.23544208,60309.0,60308.0,0.003]
[1728603416674,0.23544208,60309.0,60308.0,0.05252744]
[1728603416880,0.23544208,60309.0,60308.0,0.003]
[1728603417077,0.59624208,60309.0,60308.0,0.003]
[1728603417280,0.59624208,60309.0,60308.0,0.05253531]
[1728603417478,0.59624208,60309.0,60308.0,0.003]
[1728603419283,0.59624208,60309.0,60308.0,0.05253531]
[1728603419587,0.23544208,60309.0,60308.0,0.003]
[1728603420080,0.23544208,60309.0,60308.0,0.05256541]
[1728603420279,0.23544208,60309.0,60308.0,0.003]
[1728603420583,0.59624208,60309.0,60308.0,0.05258882]
[1728603420882,0.59624208,60309.0,60308.0,0.12726082]
[1728603421280,0.59624208,60309.0,60308.0,0.077672]
[1728603422788,0.59624208,60309.0,60308.0,0.14371653]
[1728603423592,0.59624208,60309.0,60308.0,0.077672]
[1728603424979,0.23544208,60309.0,60308.0,0.077672]
[1728603425385,0.001,60309.0,60308.0,0.207672]
[1728603425582,0.001,60309.0,60308.0,0.38988346]
[1728603425778,0.001,60309.0,60308.0,0.39002827]
[1728603425986,0.001,60309.0,60308.0,0.30733391]
[1728603426692,0.001,60309.0,60308.0,0.30720687]
[1728603426992,0.001,60309.0,60308.0,0.38988928]
[1728603427799,0.001,60309.0,60308.0,0.29035441]
[1728603428096,0.074663,60316.0,60315.0,0.074664]
[1728603428299,0.074663,60316.0,60315.0,0.204664]
[1728603429086,0.074663,60316.0,60315.0,0.13]
[1728603429087,0.003,60316.0,60315.0,0.13]
[1728603429703,0.003,60316.0,60315.0,0.204664]
[1728603429911,0.007,60316.0,60315.0,0.204664]
[1728603432503,0.007,60316.0,60315.0,0.27071094]
[1728603434300,0.081663,60316.0,60315.0,0.14071094]
[1728603434606,0.081663,60316.0,60315.0,0.11557452]
[1728603434607,0.211663,60316.0,60315.0,0.11557452]
[1728603434902,0.074664,60315.0,60314.0,0.06604694]
[1728603435100,0.13,60315.0,60313.0,0.04952758]
[1728603435304,0.074665,60314.0,60313.0,0.04952758]
[1728603435908,0.074667,60312.0,60311.0,0.06604694]
[1728603436111,0.074669,60311.0,60310.0,0.06604694]
[1728603436301,0.204669,60311.0,60310.0,0.06604694]
[1728603437810,0.204669,60311.0,60310.0,0.06704694]
[1728603438711,0.204669,60311.0,60310.0,0.001]
[1728603440513,0.07467,60310.0,60309.0,0.065871]
[1728603441008,0.07467,60310.0,60309.0,0.052771]
[1728603441307,0.07467,60310.0,60309.0,0.039671]
[1728603441907,0.07467,60310.0,60309.0,0.10571794]
[1728603442205,0.07467,60310.0,60309.0,0.10771794]
[1728603444105,0.07467,60310.0,60309.0,0.06804694]
[1728603445408,0.07467,60310.0,60309.0,0.002]
[1728603445713,0.07467,60310.0,60309.0,0.076671]
[1728603455608,0.03039351,60311.0,60310.0,0.07467]
[1728603455921,0.204667,60313.0,60311.0,0.074668]
[1728603456116,0.435464,60316.0,60312.0,0.13]
[1728603456317,0.074659,60320.0,60319.0,0.074657]
[1728603456511,0.074659,60320.0,60319.0,0.1242259]
[1728603456717,0.074659,60320.0,60319.0,0.14075019]
[1728603457622,0.081659,60320.0,60319.0,0.14075019]
[1728603459022,0.090659,60320.0,60319.0,0.14175019]
[1728603459222,0.090659,60320.0,60319.0,0.075657]
[1728603460711,0.090659,60320.0,60319.0,0.14175019]
[1728603463412,0.090659,60320.0,60319.0,0.075657]
[1728603463618,0.016,60320.0,60319.0,0.205657]
[1728603464722,0.016,60320.0,60319.0,0.075657]
[1728603471030,0.220658,60320.0,60319.0,0.075657]
[1728603472332,0.220658,60320.0,60319.0,0.001]